lending/lending_fUSD_20260209
["ID","MTS","AMOUNT","RATE_DAILY","PERIOD"]
[404912099,1770672646152,-1332.53,0.00044356,120]
[404912100,1770672646161,-1332.53,0.00044356,120]
[404912101,1770672646171,-1332.53,0.00044356,120]
[404912102,1770672646180,-1332.53,0.00044356,120]
[404912103,1770672646190,-1332.53,0.00044356,120]
[404912104,1770672646200,-1332.71336652,0.00044356,120]
[404912105,1770672646209,-2247.92,0.00044356,120]
[404912106,1770672646218,-2247.92,0.00044356,120]
[404912107,1770672646230,-2247.92,0.00044356,120]
[404912108,1770672646239,-2247.92,0.00044356,120]
[404912109,1770672646248,-2247.92,0.00044356,120]
[404912110,1770672646258,-2247.92,0.00044356,120]
[404912111,1770672646267,-2247.92,0.00044356,120]
[404912112,1770672646276,-2247.92,0.00044356,120]
[404912114,1770672646285,-2247.92,0.00044356,120]
[404912115,1770672646296,-2247.92,0.00044356,120]
[404912116,1770672646307,-2247.92,0.00044356,120]
[404912117,1770672646317,-2247.92,0.00044356,120]
[404912118,1770672646326,-2247.92,0.00044356,120]
[404912119,1770672646335,-2247.92,0.00044356,120]
[404912120,1770672646346,-2247.92,0.00044356,120]
[404912121,1770672646355,-2247.92,0.00044356,120]
[404912122,1770672646365,-2247.92,0.00044356,120]
[404912123,1770672646375,-2247.92,0.00044356,120]
[404912124,1770672646384,-2247.92,0.00044356,120]
[404912125,1770672646395,-2247.92,0.00044356,120]
[404912126,1770672646405,-2247.92,0.00044356,120]
[404912127,1770672646415,-2247.92,0.00044356,120]
[404912128,1770672646426,-2247.92,0.00044356,120]
[404912129,1770672646436,-2248.13959044,0.00044356,120]
[404912130,1770672646447,-500.0,0.00044356,120]
[404912131,1770672646457,-500.0,0.00044356,120]
[404912132,1770672646467,-500.0,0.00044356,120]
[404912133,1770672646478,-500.0,0.00044356,120]
[404912134,1770672646488,-500.0,0.00044356,120]
[404912135,1770672646497,-500.0,0.00044356,120]
[404912136,1770672646507,-500.0,0.00044356,120]
[404912137,1770672646517,-500.0,0.00044356,120]
[404912138,1770672646527,-500.0,0.00044356,120]
[404912139,1770672646536,-500.0,0.00044356,120]
[404912140,1770672646545,-626.05,0.00044356,120]
[404912141,1770672646555,-626.05,0.00044356,120]
[404912142,1770672646564,-626.05,0.00044356,120]
[404912143,1770672646574,-626.05,0.00044356,120]
[404912144,1770672646583,-626.05,0.00044356,120]
[404912145,1770672646593,-626.05,0.00044356,120]
[404912146,1770672646603,-626.05,0.00044356,120]
[404912147,1770672646613,-626.05,0.00044356,120]
[404912148,1770672646623,-626.05,0.00044356,120]
[404912149,1770672646632,-626.05,0.00044356,120]
[404912150,1770672646642,-626.05,0.00044356,120]
[404912151,1770672646652,-626.05,0.00044356,120]
[404912152,1770672646662,-626.05,0.00044356,120]
[404912153,1770672646671,-626.05,0.00044356,120]
[404912154,1770672646681,-626.05,0.00044356,120]
[404912155,1770672646691,-626.05,0.00044356,120]
[404912156,1770672646700,-626.05,0.00044356,120]
[404912157,1770672646709,-626.05,0.00044356,120]
[404912158,1770672646719,-626.05,0.00044356,120]
[404912159,1770672646731,-626.05,0.00044356,120]
[404912160,1770672646741,-626.05,0.00044356,120]
[404912161,1770672646751,-626.05,0.00044356,120]
[404912162,1770672646760,-626.05,0.00044356,120]
[404912163,1770672646770,-626.07680963,0.00044356,120]
[404912164,1770672646779,-400.0,0.0004437,3]
[404912165,1770672646789,-550.0,0.0004437,3]
[404912166,1770672646798,-150.0,0.00044373,7]
[404912167,1770672646808,-150.0,0.00044373,10]
[404912168,1770672646817,-500.0,0.00044384,60]
[404912169,1770672646827,-150.0,0.00044384,60]
[404912170,1770672646836,-500.0,0.00044384,60]
[404912171,1770672646846,-150.0,0.00044384,60]
[404912172,1770672646855,-150.0,0.00044384,60]
[404912173,1770672646864,-150.0,0.00044384,60]
[404912174,1770672646874,-150.0,0.00044384,60]
[404912175,1770672646883,-150.0,0.00044384,60]
[404912176,1770672646892,-150.0,0.00044384,60]
[404912177,1770672646902,-500.0,0.00044384,60]
[404912178,1770672646911,-500.0,0.00044384,60]
[404912179,1770672646921,-150.40242069,0.00044384,60]
[404912180,1770672646931,-150.0,0.00044384,60]
[404912181,1770672646940,-500.0,0.00044384,60]
[404912182,1770672646949,-500.0,0.00044384,60]
[404912183,1770672646959,-150.0,0.00044384,60]
[404912184,1770672646967,-150.0,0.00044384,60]
[404912185,1770672646978,-150.0,0.00044384,2]
[404912186,1770672646990,-200.0,0.00044384,30]
[404912187,1770672647000,-150.0,0.00044384,60]
[404912188,1770672647009,-500.0,0.00044384,60]
[404912189,1770672647019,-250.0,0.00044384,60]
[404912190,1770672647029,-150.0,0.00044384,2]
[404912191,1770672647039,-150.0,0.00044384,2]
[404912192,1770672647048,-150.0,0.00044384,60]
[404912193,1770672647057,-150.0,0.00044384,60]
[404912194,1770672647067,-200.0,0.00044384,60]
[404912195,1770672647076,-205.83867613,0.00044384,60]
[404912196,1770672647086,-500.0,0.00044384,60]
[404912197,1770672647096,-500.0,0.00044384,60]
[404912198,1770672647105,-150.0,0.00044384,60]
[404912199,1770672647115,-150.0,0.00044384,60]
[404912200,1770672647124,-150.65120748,0.00044384,60]
[404912201,1770672647134,-150.0,0.00044384,60]
[404912202,1770672647143,-292.33944889,0.00044384,60]
[404912203,1770672647152,-150.0,0.00044384,60]
[404912204,1770672647162,-150.0,0.00044384,60]
[404912205,1770672647172,-248.08731584,0.00044384,60]
[404912206,1770672647181,-150.0,0.00044384,60]
[404912207,1770672647191,-269.21162373,0.00044384,60]
[404912208,1770672647200,-235.58915604,0.00044384,60]
[404912209,1770672647210,-150.0,0.00044384,60]
[404912210,1770672647219,-150.0,0.00044384,60]
[404912211,1770672647229,-511.1146881,0.00044439,60]
[404912212,1770672647239,-150.0,0.00044439,60]
[404912213,1770672647248,-501.95201777,0.00044439,60]
[404912214,1770672647257,-220.49203217,0.00044439,60]
[404912215,1770672647267,-150.0,0.00044439,60]
[404912216,1770672647276,-150.0,0.00044439,60]
[404912217,1770672647286,-222.13916012,0.00044439,60]
[404912218,1770672647297,-150.0,0.00044439,60]
[404912219,1770672647307,-500.0,0.00044439,60]
[404912220,1770672647317,-643.99521436,0.00044439,60]
[404912221,1770672647326,-150.0,0.00044439,60]
[404912222,1770672647336,-500.0,0.00044439,60]
[404912223,1770672647346,-500.0,0.00044439,60]
[404912224,1770672647356,-150.0,0.00044439,60]
[404912225,1770672647366,-200.0,0.00044439,2]
[404912226,1770672647376,-200.0,0.00044439,30]
[404912227,1770672647386,-500.0,0.00044439,60]
[404912228,1770672647395,-150.0,0.00044439,60]
[404912229,1770672647405,-150.0,0.00044439,60]
[404912230,1770672647415,-150.0,0.00044439,60]
[404912231,1770672647424,-500.0,0.00044439,60]
[404912232,1770672647434,-500.0,0.00044439,60]
[404912233,1770672647443,-150.0,0.00044439,60]
[404912234,1770672647453,-150.0,0.00044439,60]
[404912235,1770672647463,-150.0,0.00044439,60]
[404912236,1770672647473,-236.64982179,0.00044439,60]
[404912237,1770672647484,-150.0,0.00044439,60]
[404912238,1770672647494,-150.0,0.00044439,60]
[404912239,1770672647505,-151.07929835,0.00044439,60]
[404912240,1770672647515,-400.0,0.0004447,3]
[404912241,1770672647525,-300.0,0.00044473,5]
[404912242,1770672647534,-221.24334971,0.00044494,60]
[404912243,1770672647544,-150.0,0.00044494,60]
[404912244,1770672647554,-150.0,0.00044494,60]
[404912245,1770672647563,-150.0,0.00044494,60]
[404912246,1770672647573,-500.0,0.00044494,60]
[404912247,1770672647583,-150.0,0.00044494,60]
[404912248,1770672647592,-500.0,0.00044494,60]
[404912249,1770672647602,-500.0,0.00044494,60]
[404912250,1770672647612,-150.0,0.00044494,60]
[404912251,1770672647622,-200.0,0.00044494,30]
[404912252,1770672647632,-257.05109644,0.00044494,60]
[404912253,1770672647642,-282.92340475,0.00044494,60]
[404912254,1770672647652,-200.7490249,0.00044494,60]
[404912255,1770672647662,-197.5640771,0.00044494,60]
[404912256,1770672647672,-500.0,0.00044494,60]
[404912257,1770672647682,-500.0,0.00044494,60]
[404912258,1770672647692,-150.0,0.00044494,60]
[404912259,1770672647702,-200.0,0.00044494,60]
[404912260,1770672647711,-202.46525385,0.00044494,60]
[404912261,1770672647721,-225.94746134,0.00044494,60]
[404912262,1770672647732,-150.0,0.00044494,60]
[404912263,1770672647742,-424.11128469,0.00044499,2]
[404912264,1770672647751,-1556.61134419,0.0004451,16]
[404912265,1770672647761,-1000.0,0.00044521,10]
[404912266,1770672647771,-1000.0,0.00044521,10]
[404912267,1770672647781,-1000.0,0.00044521,10]
[404912268,1770672647790,-512.37760017,0.00044521,10]
[404912269,1770672647800,-909.66829792,0.00044521,10]
[404912270,1770672647809,-1000.0,0.00044521,10]
[404912271,1770672647819,-1000.0,0.00044521,10]
[404912272,1770672647828,-1000.0,0.00044521,10]
[404912273,1770672647838,-1000.0,0.00044521,10]
[404912274,1770672647847,-508.11951791,0.00044521,10]
[404912275,1770672647858,-1000.0,0.00044521,10]
[404912276,1770672647867,-507.86083047,0.00044521,10]
[404912277,1770672647877,-1000.0,0.00044521,10]
[404912278,1770672647886,-1000.0,0.00044521,10]
[404912279,1770672647897,-1000.0,0.00044521,10]
[404912280,1770672647906,-507.66246829,0.00044521,10]
[404912281,1770672647915,-1000.0,0.00044521,10]
[404912282,1770672647925,-250.11398482,0.00044521,10]
[404912283,1770672647936,-991.58147071,0.00044521,10]
[404912284,1770672647946,-1000.0,0.00044521,10]
[404912285,1770672647956,-263.01481468,0.00044521,5]
[404912286,1770672647966,-1000.0,0.00044521,10]
[404912287,1770672647978,-150.0,0.00044547,120]
[404912288,1770672647988,-191.0,0.00044548,60]
[404912289,1770672647998,-209.54417137,0.00044548,60]
[404912290,1770672648008,-250.0,0.00044548,60]
[404912291,1770672648018,-500.0,0.00044548,60]
[404912292,1770672648028,-150.0,0.00044548,60]
[404912293,1770672648037,-500.0,0.00044548,60]
[404912294,1770672648047,-500.0,0.00044548,60]
[404912295,1770672648057,-150.0,0.00044548,60]
[404912296,1770672648066,-200.0,0.00044548,30]
[404912297,1770672648076,-500.0,0.00044548,60]
[404912298,1770672648087,-500.0,0.00044548,60]
[404912299,1770672648096,-167.75454238,0.00044548,60]
[404912300,1770672648106,-208.43558998,0.00044548,60]
[404912301,1770672648115,-150.0,0.000446,75]
[404912302,1770672648125,-150.0,0.000446,30]
[404912303,1770672648135,-500.0,0.00044603,60]
[404912304,1770672648145,-500.0,0.00044603,60]
[404912305,1770672648154,-500.0,0.00044603,60]
[404912306,1770672648164,-150.0,0.00044603,60]
[404912307,1770672648174,-200.0,0.00044603,30]
[404912308,1770672648184,-500.0,0.00044603,60]
[404912309,1770672648193,-500.0,0.00044603,60]
[404912310,1770672648203,-151.0,0.0004461,28]
[404912311,1770672648214,-151.0,0.0004461,28]
[404912312,1770672648223,-1023.82669267,0.00044612,57]
[404912313,1770672648234,-2635092.34042251,0.00044613,10]
[404912314,1770672648625,-6.00125136,0.00023673,2]
[404912315,1770672648642,-247.48776596,0.0001938,2]
[404912316,1770672648652,-258.40023404,0.00023673,2]
[404912317,1770672648761,-258.40857161,0.00015981,2]
[404912318,1770672648772,-23.19224054,0.00016082,2]
[404912319,1770672648799,-343.54934862,0.00016082,2]
[404912320,1770672648812,-266.40447413,0.00016082,2]
[404912321,1770672648832,-540.0754546,0.00015981,2]
[404912322,1770672648843,-110.9245454,0.00016082,2]
[404912323,1770672649093,-1896.21,0.00016082,2]
[404912324,1770672680991,10000.01,0.00015802,2]
[404912325,1770672681015,2137.037196,0.00015802,2]
[404912326,1770672709961,151.0,0.00014634,2]
[404912327,1770672719280,9849.01,0.00015782,2]
[404912328,1770672719305,10000.01,0.00015782,2]
[404912329,1770672723682,151.0,0.00014634,2]
[404912331,1770672726117,151.0,0.00014634,2]
[404912332,1770672727733,850.505377,7.945e-05,2]
[404912333,1770672736640,203.22,0.000303,30]
[404912342,1770672931205,182.89,0.000303,30]
[404912347,1770672989281,10000.01,0.0001478,2]
[404912348,1770672989305,5533.34,0.0001478,2]
[404912352,1770672994256,209.68,0.0001478,2]
[404912357,1770673075241,3145.95846857,0.00014762,2]
[404912358,1770673075266,3145.95846857,0.00014762,2]
[404912359,1770673075289,3145.95846857,0.00014762,2]
[404912360,1770673075312,2178.83459429,0.00014762,2]
[404912361,1770673109242,967.12387428,0.00014756,2]
[404912362,1770673109265,798.33612572,0.00014756,2]
[404912363,1770673126165,164.6,0.000303,30]
[404912364,1770673140004,2347.62234285,0.00014756,2]
[404912365,1770673140028,3145.95846857,0.00014756,2]
[404912366,1770673140054,3145.95846857,0.00014756,2]
[404912367,1770673140077,3145.95846857,0.00014756,2]
[404912368,1770673140100,3145.95846857,0.00014756,2]
[404912369,1770673140123,3145.95846857,0.00014756,2]
[404912370,1770673140151,4940.0253143,0.00014756,2]
[404912371,1770673197913,1000.0,0.00014786,2]
[404912374,1770673217031,541.04,0.0001483,2]
[404912382,1770673237704,1852.42,0.00014806,2]
[404912384,1770673269902,1600.0,0.00014755,2]
[404912390,1770673321409,164.61,0.000302,30]
[404912391,1770673321770,164.61,0.000346,30]
[404912392,1770673328844,200.0,0.00014739,2]
[404912393,1770673341478,-279.44022548,0.00015581,2]
[404912394,1770673341514,-280.0,0.00015581,2]
[404912396,1770673359346,-8677.222804,0.00015581,2]
[404912397,1770673359540,-10000.01,0.00015581,2]
[404912398,1770673359575,-10000.01,0.00015581,2]
[404912399,1770673359717,-10000.01,0.00015581,2]
[404912400,1770673359851,-10000.01,0.00015581,2]
[404912401,1770673365417,-10000.01,0.00015581,2]
[404912402,1770673365564,-10000.01,0.00015581,2]
[404912403,1770673365656,-10000.01,0.00015581,2]
[404912404,1770673365766,-10000.01,0.00015581,2]
[404912405,1770673365944,-10000.01,0.00015581,2]
[404912406,1770673398287,319.57,0.00014742,2]
[404912407,1770673457307,498.63970588,0.00035589,30]
[404912408,1770673469314,150.0,0.00014721,2]
[404912410,1770673504177,9888.93,0.00014693,2]
[404912415,1770673516439,164.61,0.000306,30]
[404912416,1770673516726,164.61,0.000349,30]
[404912424,1770673590158,250.0,0.00015,2]
[404912425,1770673617622,378.636441,0.00015422,2]
[404912429,1770673639397,7123.67,0.00011926,2]
[404912430,1770673659692,-233.12,0.000155,2]
[404912431,1770673667081,3712.4144024,0.00015497,2]
[404912432,1770673672772,214.40987324,0.00015497,2]
[404912433,1770673674606,-300.0,0.00015503,2]
[404912434,1770673681948,300.0,0.00015503,2]
[404912436,1770673683617,300.0,0.00015503,2]
[404912437,1770673688424,8800.01,7.945e-05,2]
[404912438,1770673688453,225.87553,7.945e-05,2]
[404912439,1770673689658,-781.40727373,0.00015504,2]
[404912440,1770673689706,-1534.23514816,0.00015504,2]
[404912441,1770673690014,-4080.60890958,0.00015504,2]
[404912442,1770673690043,-10000.01,0.00015504,2]
[404912443,1770673690172,-2303.3282808,0.00015504,2]
[404912444,1770673690207,-325.91108937,0.00015504,2]
[404912445,1770673696773,3240.0,0.00014674,2]
[404912447,1770673704703,-300.0,0.00015514,2]
[404912448,1770673704735,-1200.0,0.00015514,2]
[404912450,1770673711223,164.61,0.000302,30]
[404912456,1770673719770,-179.05402534,0.00015515,2]
[404912457,1770673719853,-6401.90194932,0.00015515,2]
[404912458,1770673719904,-4333.12483836,0.00015515,2]
[404912542,1770673734933,-10000.01,0.00015535,2]
[404912548,1770673735063,-3616.0728097,0.00015535,2]
[404912550,1770673735090,-2767.8643806,0.00015535,2]
[404912610,1770673748027,4971.652495,7.945e-05,2]
[404912611,1770673749932,-300.0,0.00015544,2]
[404912612,1770673767056,-5028.357505,0.00015545,2]
[404912613,1770673767184,-4293.3407174,0.00015545,2]
[404912614,1770673767208,-1413.3285652,0.00015545,2]
[404912615,1770673782033,-250.0,0.00015549,2]
[404912617,1770673797133,-319.57,0.00015561,2]
[404912619,1770673808342,7333.419938,7.945e-05,2]
[404912620,1770673809288,-300.0,0.00015565,2]
[404912621,1770673809320,-1200.0,0.00015565,2]
[404912622,1770673809350,-280.0,0.00015565,2]
[404912743,1770673824272,-2666.590062,0.00015566,2]
[404912749,1770673824390,-10000.01,0.00015566,2]
[404912754,1770673824515,-3717.3471283,0.00015566,2]
[404913040,1770673831961,-10735.0267876,0.00015574,2]
[404913041,1770673831971,-500.0,0.00015579,2]
[404913043,1770673831980,-500.0,0.00015579,2]
[404913044,1770673831991,-500.0,0.00015579,2]
[404913045,1770673832000,-500.0,0.00015579,2]
[404913047,1770673832009,-500.0,0.00015579,2]
[404913048,1770673832019,-500.0,0.00015579,2]
[404913050,1770673832028,-356.59250365,0.00015579,2]
[404913051,1770673832037,-500.0,0.00015579,2]
[404913052,1770673832047,-500.0,0.00015579,2]
[404913054,1770673832056,-603.73001325,0.00015579,2]
[404913055,1770673832066,-500.0,0.00015579,2]
[404913056,1770673832075,-500.0,0.00015579,2]
[404913058,1770673832084,-378.64264103,0.00015579,2]
[404913059,1770673832094,-500.0,0.00015579,2]
[404913060,1770673832103,-462.82497499,0.00015579,2]
[404913062,1770673832113,-500.0,0.00015579,2]
[404913063,1770673832122,-509.31183288,0.00015579,2]
[404913064,1770673832131,-500.0,0.00015579,2]
[404913066,1770673832141,-500.0,0.00015579,2]
[404913067,1770673832151,-506.03129652,0.00015579,2]
[404913069,1770673832160,-500.0,0.00015579,2]
[404913070,1770673832169,-404.7419541,0.00015579,2]
[404913071,1770673832180,-500.0,0.00015579,2]
[404913073,1770673832189,-500.0,0.00015579,2]
[404913074,1770673832198,-500.0,0.00015579,2]
[404913075,1770673832208,-500.0,0.00015579,2]
[404913077,1770673832217,-500.0,0.00015579,2]
[404913078,1770673832227,-500.0,0.00015579,2]
[404913079,1770673832236,-500.0,0.00015579,2]
[404913081,1770673832245,-500.0,0.00015579,2]
[404913082,1770673832254,-500.0,0.00015579,2]
[404913083,1770673832263,-500.0,0.00015579,2]
[404913085,1770673832273,-500.0,0.00015579,2]
[404913086,1770673832282,-500.0,0.00015579,2]
[404913087,1770673832291,-500.0,0.00015579,2]
[404913089,1770673832301,-500.0,0.00015579,2]
[404913090,1770673832310,-500.0,0.00015579,2]
[404913092,1770673832319,-500.0,0.00015579,2]
[404913093,1770673832328,-500.0,0.00015579,2]
[404913094,1770673832337,-500.0,0.00015579,2]
[404913096,1770673832347,-500.0,0.00015579,2]
[404913097,1770673832356,-500.0,0.00015579,2]
[404913098,1770673832365,-500.0,0.00015579,2]
[404913100,1770673832375,-500.0,0.00015579,2]
[404913101,1770673832385,-500.0,0.00015579,2]
[404913103,1770673832395,-500.0,0.00015579,2]
[404913104,1770673832405,-500.0,0.00015579,2]
[404913105,1770673832414,-500.0,0.00015579,2]
[404913107,1770673832424,-500.0,0.00015579,2]
[404913108,1770673832433,-500.0,0.00015579,2]
[404913109,1770673832442,-1848.48407924,0.00015579,2]
[404913111,1770673832452,-1848.48407924,0.00015579,2]
[404913112,1770673832462,-1848.48407924,0.00015579,2]
[404913113,1770673832471,-1848.48407924,0.00015579,2]
[404913115,1770673832480,-1848.48407924,0.00015579,2]
[404913116,1770673832490,-1848.48407924,0.00015579,2]
[404913117,1770673832500,-1848.48407924,0.00015579,2]
[404913119,1770673832509,-1848.48407924,0.00015579,2]
[404913120,1770673832519,-1848.48407924,0.00015579,2]
[404913121,1770673832528,-1848.48407924,0.00015579,2]
[404913123,1770673832537,-1848.48407924,0.00015579,2]
[404913124,1770673832547,-1848.48407924,0.00015579,2]
[404913125,1770673832556,-1848.48407924,0.00015579,2]
[404913127,1770673832566,-1848.48407924,0.00015579,2]
[404913128,1770673832576,-1848.48407924,0.00015579,2]
[404913129,1770673832586,-1848.48407924,0.00015579,2]
[404913131,1770673832595,-1848.48407924,0.00015579,2]
[404913132,1770673832605,-1848.48407924,0.00015579,2]
[404913134,1770673832615,-1848.48407924,0.00015579,2]
[404913135,1770673832624,-1848.48407924,0.00015579,2]
[404913136,1770673832634,-1848.48407924,0.00015579,2]
[404913138,1770673832645,-1848.48407924,0.00015579,2]
[404913139,1770673832656,-1848.48407924,0.00015579,2]
[404913140,1770673832665,-1848.48407924,0.00015579,2]
[404913142,1770673832676,-1848.48407924,0.00015579,2]
[404913143,1770673832686,-1848.48407924,0.00015579,2]
[404913144,1770673832696,-1848.48407924,0.00015579,2]
[404913146,1770673832707,-1848.48407924,0.00015579,2]
[404913147,1770673832718,-1848.48407924,0.00015579,2]
[404913149,1770673832728,-1848.48407924,0.00015579,2]
[404913150,1770673832738,-1848.48407924,0.00015579,2]
[404913151,1770673832747,-1848.48407924,0.00015579,2]
[404913153,1770673832757,-1848.48407924,0.00015579,2]
[404913154,1770673832766,-1848.48407924,0.00015579,2]
[404913155,1770673832776,-1848.48407924,0.00015579,2]
[404913157,1770673832785,-1848.48407924,0.00015579,2]
[404913158,1770673832795,-1833.79877786,0.00015579,2]
[404913159,1770673832804,-1833.79877786,0.00015579,2]
[404913161,1770673832816,-1833.79877786,0.00015579,2]
[404913162,1770673832825,-1833.79877786,0.00015579,2]
[404913163,1770673832835,-1833.79877786,0.00015579,2]
[404913165,1770673832844,-1833.79877786,0.00015579,2]
[404913166,1770673832853,-1833.79877786,0.00015579,2]
[404913168,1770673832862,-1833.79877786,0.00015579,2]
[404913169,1770673832872,-1833.79877786,0.00015579,2]
[404913170,1770673832881,-1833.79877786,0.00015579,2]
[404913172,1770673832890,-1833.79877786,0.00015579,2]
[404913173,1770673832900,-1833.79877786,0.00015579,2]
[404913174,1770673832910,-1833.79877786,0.00015579,2]
[404913176,1770673832919,-1833.79877786,0.00015579,2]
[404913177,1770673832928,-1833.79877786,0.00015579,2]
[404913178,1770673832938,-1833.79877786,0.00015579,2]
[404913180,1770673832947,-1833.79877786,0.00015579,2]
[404913181,1770673832956,-1833.79877786,0.00015579,2]
[404913182,1770673832965,-1833.79877786,0.00015579,2]
[404913184,1770673832975,-1833.79877786,0.00015579,2]
[404913185,1770673832984,-1833.79877786,0.00015579,2]
[404913187,1770673832993,-1833.79877786,0.00015579,2]
[404913188,1770673833002,-1833.79877786,0.00015579,2]
[404913189,1770673833011,-1833.79877786,0.00015579,2]
[404913191,1770673833021,-1833.79877786,0.00015579,2]
[404913192,1770673833030,-2833.79877781,0.00015579,2]
[404913193,1770673833039,-500.0,0.0001558,2]
[404913195,1770673833048,-488.88907371,0.0001558,2]
[404913196,1770673833057,-500.0,0.0001558,2]
[404913197,1770673833066,-500.0,0.0001558,2]
[404913199,1770673833075,-500.0,0.0001558,2]
[404913200,1770673833085,-500.0,0.0001558,2]
[404913202,1770673833094,-500.0,0.0001558,2]
[404913203,1770673833103,-500.0,0.0001558,2]
[404913204,1770673833112,-500.0,0.0001558,2]
[404913206,1770673833122,-500.0,0.0001558,2]
[404913207,1770673833132,-500.0,0.0001558,2]
[404913208,1770673833141,-500.0,0.0001558,2]
[404913210,1770673833150,-501.35759554,0.0001558,2]
[404913211,1770673833160,-500.0,0.0001558,2]
[404913212,1770673833170,-500.0,0.0001558,2]
[404913214,1770673833179,-500.0,0.0001558,2]
[404913215,1770673833189,-500.0,0.0001558,2]
[404913217,1770673833198,-500.0,0.0001558,2]
[404913218,1770673833207,-500.0,0.0001558,2]
[404913219,1770673833216,-500.0,0.0001558,2]
[404913221,1770673833225,-1024.76,0.0001558,2]
[404913222,1770673833234,-1024.76,0.0001558,2]
[404913223,1770673833243,-1024.76,0.0001558,2]
[404913225,1770673833253,-1024.76,0.0001558,2]
[404913226,1770673833262,-1024.76,0.0001558,2]
[404913227,1770673833272,-1024.76,0.0001558,2]
[404913229,1770673833281,-1024.76,0.0001558,2]
[404913230,1770673833290,-1024.76,0.0001558,2]
[404913232,1770673833299,-1024.76,0.0001558,2]
[404913233,1770673833309,-1024.76,0.0001558,2]
[404913234,1770673833319,-1024.76,0.0001558,2]
[404913235,1770673833329,-1024.76,0.0001558,2]
[404913236,1770673833338,-1024.76,0.0001558,2]
[404913237,1770673833349,-1024.76,0.0001558,2]
[404913238,1770673833358,-1901.19,0.0001558,2]
[404913239,1770673833368,-1901.19,0.0001558,2]
[404913240,1770673833378,-1901.19,0.0001558,2]
[404913241,1770673833387,-1901.19,0.0001558,2]
[404913242,1770673833398,-1901.19,0.0001558,2]
[404913243,1770673833407,-1901.19,0.0001558,2]
[404913245,1770673833417,-1901.19,0.0001558,2]
[404913246,1770673833426,-1901.19,0.0001558,2]
[404913247,1770673833436,-500.0,0.0001558,2]
[404913249,1770673833445,-1901.19,0.0001558,2]
[404913250,1770673833454,-500.0,0.0001558,2]
[404913252,1770673833463,-1901.19,0.0001558,2]
[404913253,1770673833472,-500.0,0.0001558,2]
[404913254,1770673833481,-1901.19,0.0001558,2]
[404913256,1770673833491,-500.0,0.0001558,2]
[404913257,1770673833500,-1901.19,0.0001558,2]
[404913258,1770673833510,-500.0,0.0001558,2]
[404913260,1770673833519,-1901.19,0.0001558,2]
[404913261,1770673833528,-500.0,0.0001558,2]
[404913262,1770673833537,-1901.19,0.0001558,2]
[404913264,1770673833546,-500.0,0.0001558,2]
[404913265,1770673833555,-500.0,0.0001558,2]
[404913267,1770673833565,-500.0,0.0001558,2]
[404913268,1770673833575,-500.0,0.0001558,2]
[404913269,1770673833584,-500.0,0.0001558,2]
[404913271,1770673833595,-500.0,0.0001558,2]
[404913272,1770673833604,-500.0,0.0001558,2]
[404913273,1770673833614,-600.6147155,0.0001558,2]
[404913275,1770673833623,-500.0,0.0001558,2]
[404913276,1770673833635,-500.0,0.0001558,2]
[404913277,1770673833646,-16383.9471903,0.00015597,2]
[404913279,1770673833656,-10735.0267876,0.00015604,2]
[404913280,1770673833665,-5909.69,0.00015604,2]
[404913282,1770673833675,-4999.99,0.00015604,2]
[404913283,1770673833684,-9999.99,0.00015615,2]
[404913284,1770673833695,-9999.99,0.00015615,2]